bitfinex/quotes_SOLUSD_20251118
["timestamp","ask_amount","ask_price","bid_price","bid_amount"]
[1763433273436,8.94400646,134.58,134.52,8.94400646]
[1763433273637,14.34400646,134.57,134.48,10.39882769]
[1763433273831,8.94400646,134.55,134.49,8.94400646]
[1763433274033,37.08419121,134.69,134.45,0.81]
[1763433274034,8.94400646,134.52,134.46,8.94400646]
[1763433274532,0.7,134.64,134.45,0.2]
[1763433274533,2.0,134.61,134.47,0.61]
[1763433274717,0.7,134.56,134.51,8.94400646]
[1763433274920,13.64400646,134.55,134.47,0.61]
[1763433275235,37.87917138,134.68,134.47,0.61]
[1763433275236,0.7,134.58,134.53,8.94400646]
[1763433275418,4.7,134.57,134.54,8.94400646]
[1763433275745,0.7,134.6,134.56,8.94400646]
[1763433275921,4.7,134.59,134.57,8.94400646]
[1763433276123,4.7,134.59,134.53,9.78882769]
[1763433276124,4.7,134.59,134.56,8.94400646]
[1763433276843,4.7,134.59,134.54,8.94400646]
[1763433276844,0.7,134.58,134.54,8.94400646]
[1763433277043,0.7,134.58,134.53,8.94400646]
[1763433277235,0.7,134.58,134.52,8.94400646]
[1763433277542,0.7,134.58,134.43,0.94388157]
[1763433277543,8.94400646,134.57,134.51,8.94400646]
[1763433277852,8.94400646,134.56,134.47,0.61]
[1763433278063,0.7,134.57,134.52,8.94400646]
[1763433278339,0.7,134.57,134.47,1.35366029]
[1763433278340,13.64400646,134.56,134.5,8.94400646]
[1763433278547,4.7,134.56,134.51,8.94400646]
[1763433278715,8.94400646,134.59,134.53,8.94400646]
[1763433278915,4.7,134.58,134.55,8.94400646]
[1763433279235,4.7,134.58,134.51,9.78882769]
[1763433279236,4.7,134.58,134.54,8.94400646]
[1763433279546,4.7,134.58,134.5,0.61]
[1763433279738,4.7,134.58,134.49,9.78882769]
[1763433279739,0.7,134.57,134.49,9.78882769]
[1763433280044,9.64400646,134.57,134.52,8.94400646]
[1763433280234,4.7,134.56,134.52,8.94400646]
[1763433280435,0.7,134.57,134.47,1.35366029]
[1763433280436,44.96496646,134.6,134.54,8.94400646]
[1763433280635,18.6,134.6,134.55,8.94400646]
[1763433280856,4.7,134.59,134.56,8.94400646]
[1763433281151,18.6,134.6,134.58,8.94400646]
[1763433281461,4.7,134.59,134.57,8.94400646]
[1763433282848,17.9,134.6,134.58,8.94400646]
[1763433283055,4.7,134.59,134.55,10.39882769]
[1763433283357,4.7,134.59,134.54,0.74327337]
[1763433283645,4.7,134.59,134.54,0.61]
[1763433284044,4.7,134.59,134.57,8.94400646]
[1763433284432,17.9,134.6,134.57,8.94400646]
[1763433284637,4.7,134.59,134.57,8.94400646]
[1763433285152,5.35,134.59,134.52,18.12096]
[1763433285336,4.7,134.59,134.57,8.94400646]
[1763433286356,4.7,134.59,134.52,9.78882769]
[1763433286357,0.65,134.58,134.52,9.78882769]
[1763433286565,0.65,134.58,134.54,8.94400646]
[1763433287336,0.65,134.58,134.51,9.78882769]
[1763433287537,13.64400646,134.59,134.54,8.94400646]
[1763433287746,9.59400646,134.58,134.48,0.74360499]
[1763433288032,9.59400646,134.57,134.52,8.94400646]
[1763433288247,4.68,134.56,134.45,0.94377091]
[1763433288428,5.33,134.56,134.52,8.94400646]
[1763433289159,5.33,134.56,134.49,18.12096]
[1763433289160,0.65,134.59,134.55,8.94400646]
[1763433289456,13.62400646,134.58,134.53,8.94400646]
[1763433289637,8.94400646,134.57,134.51,8.94400646]
[1763433289956,8.94400646,134.57,134.5,8.94400646]
[1763433289957,8.94400646,134.55,134.5,8.94400646]
[1763433290126,4.68,134.54,134.5,8.94400646]
[1763433290330,13.62400646,134.54,134.45,0.94377091]
[1763433290549,4.68,134.54,134.46,9.78882769]
[1763433290769,4.68,134.53,134.51,8.94400646]
[1763433290960,4.68,134.52,134.46,9.78882769]
[1763433291130,0.65,134.57,134.51,8.94400646]
[1763433291329,4.68,134.56,134.46,9.78882769]
[1763433291526,4.68,134.56,134.52,8.94400646]
[1763433291836,9.59400646,134.55,134.5,8.94400646]
[1763433292373,0.65,134.54,134.5,8.94400646]
[1763433292652,0.65,134.54,134.46,9.78882769]
[1763433292653,4.68,134.53,134.51,8.94400646]
[1763433293225,0.65,134.55,134.51,8.94400646]
[1763433293437,4.68,134.54,134.53,8.94400646]
[1763433293635,4.68,134.54,134.52,8.94400646]
[1763433293972,5.33,134.54,134.49,8.94400646]
[1763433294163,5.33,134.54,134.5,8.94400646]
[1763433294653,5.33,134.54,134.47,8.94400646]
[1763433294654,8.94400646,134.52,134.47,8.94400646]
[1763433294831,4.68,134.51,134.45,0.2]
[1763433295033,0.65,134.52,134.48,8.94400646]
[1763433295340,4.68,134.51,134.47,8.94400646]
[1763433295748,5.33,134.51,134.47,8.94400646]
[1763433296077,4.68,134.51,134.48,8.94400646]
[1763433296249,4.68,134.5,134.49,8.94400646]
[1763433296449,4.68,134.5,134.45,0.2]
[1763433296671,4.68,134.5,134.49,8.94400646]
[1763433297156,0.65,134.53,134.49,8.94400646]
[1763433297364,0.65,134.53,134.45,0.2]
[1763433297365,0.65,134.53,134.5,8.94400646]
[1763433297538,4.68,134.52,134.5,8.94400646]
[1763433298148,4.68,134.52,134.45,6.14229667]
[1763433298445,0.65,134.51,134.47,8.94400646]
[1763433298763,9.59400646,134.51,134.46,8.94400646]
[1763433299062,0.65,134.5,134.46,8.94400646]
[1763433299861,0.65,134.5,134.47,8.94400646]
[1763433300271,8.94400646,134.49,134.45,0.2]
[1763433300461,4.68,134.48,134.45,0.2]
[1763433300665,5.33,134.48,134.45,0.2]
[1763433300966,4.68,134.47,134.45,0.2]
[1763433301279,17.9,134.6,134.54,18.12096]
[1763433301571,17.9,134.6,134.59,8.94400646]
[1763433301745,22.58,134.6,134.58,8.94400646]
[1763433302174,22.58,134.6,134.55,15.76855661]
[1763433302345,22.58,134.6,134.59,8.94400646]
[1763433302546,22.58,134.6,134.59,24.71256307]
[1763433302779,22.58,134.6,134.59,26.70580605]
[1763433303350,23.23,134.6,134.57,5.98643325]
[1763433303565,22.58,134.6,134.59,8.94400646]
[1763433304270,22.58,134.6,134.55,5.98643325]
[1763433304271,23.23,134.6,134.55,5.98643325]
[1763433304453,0.65,134.59,134.55,8.94400646]
[1763433304775,0.65,134.59,134.54,14.93043971]
[1763433304947,0.65,134.59,134.55,8.94400646]
[1763433305358,0.65,134.59,134.54,14.93043971]
[1763433305647,0.65,134.59,134.55,8.94400646]
[1763433306150,0.65,134.59,134.55,14.93043971]
[1763433307145,0.65,134.59,134.52,5.98643325]
[1763433307146,8.94400646,134.58,134.52,5.98643325]
[1763433307352,0.65,134.59,134.53,8.94400646]
[1763433307665,26.84400646,134.6,134.54,8.94400646]
[1763433307666,5.33,134.58,134.54,8.94400646]
[1763433307848,5.33,134.58,134.53,8.94400646]
[1763433308045,0.65,134.57,134.52,5.98643325]
[1763433308259,0.65,134.57,134.5,7.9729719]
[1763433308260,8.94400646,134.55,134.5,5.98643325]
[1763433308464,4.68,134.54,134.49,5.98643325]
[1763433308987,4.68,134.54,134.47,5.98643325]
[1763433308988,0.65,134.53,134.47,5.98643325]
[1763433309288,0.65,134.53,134.45,8.1729719]
[1763433309289,8.94400646,134.49,134.45,0.2]
[1763433309492,0.65,134.53,134.45,0.2]
[1763433309493,4.68,134.48,134.45,0.2]
[1763433309695,8.94400646,134.46,134.43,0.2]
[1763433309999,8.94400646,134.46,134.33,16.95513502]
[1763433310000,27.06496646,134.44,134.33,7.9729719]
[1763433310152,8.94400646,134.39,134.34,8.94400646]
[1763433310355,13.62400646,134.38,134.31,8.1729719]
[1763433310564,4.68,134.38,134.34,8.94400646]
[1763433311474,0.65,134.42,134.39,5.82777608]
[1763433311688,4.68,134.4,134.36,6.02777608]
[1763433311873,4.68,134.4,134.31,0.2]
[1763433311874,5.82777608,134.37,134.31,0.2]
[1763433312087,0.65,134.42,134.31,0.2]
[1763433312088,10.50777608,134.36,134.31,0.2]
[1763433312400,4.68,134.36,134.31,6.02777608]
[1763433312560,6.50777608,134.35,134.31,0.2]
[1763433312895,0.68,134.35,134.31,6.02777608]
[1763433313179,0.68,134.34,134.31,6.02777608]
[1763433313383,4.68,134.33,134.31,6.02777608]
[1763433313593,4.68,134.32,134.31,6.02777608]
[1763433313964,0.68,134.38,134.31,6.73777608]
[1763433314279,5.82777608,134.36,134.31,0.2]
[1763433314484,4.68,134.37,134.31,0.2]
[1763433314485,6.50777608,134.35,134.31,0.2]
[1763433314784,17.9,134.43,134.34,5.82777608]
[1763433314955,0.68,134.41,134.36,5.82777608]
[1763433315157,5.82777608,134.39,134.31,0.91]
[1763433315381,4.68,134.38,134.34,5.82777608]
[1763433315769,4.68,134.38,134.31,0.91]
[1763433315770,5.36,134.38,134.31,0.91]
[1763433315983,5.36,134.38,134.34,5.82777608]
[1763433316167,5.36,134.38,134.33,5.82777608]
[1763433316360,0.68,134.37,134.33,5.82777608]
[1763433317972,0.68,134.37,134.34,5.82777608]
[1763433318661,4.68,134.38,134.34,5.82777608]
[1763433318870,23.72777608,134.43,134.37,5.82777608]
[1763433319165,11.16777608,134.42,134.31,0.91]
[1763433319384,5.82777608,134.39,134.34,5.82777608]
[1763433319594,4.68,134.38,134.34,5.82777608]
[1763433319885,4.68,134.38,134.35,5.82777608]
[1763433320180,18.12096,134.42,134.36,5.82777608]
[1763433320181,4.68,134.37,134.36,5.82777608]
[1763433321475,4.68,134.37,134.32,9.78882769]
[1763433321684,4.68,134.37,134.35,5.82777608]
[1763433321983,4.68,134.37,134.36,5.82777608]
[1763433322198,4.68,134.37,134.33,0.71]
[1763433322366,4.68,134.37,134.36,5.82777608]
[1763433323786,5.34,134.37,134.35,5.82777608]
[1763433323990,0.66,134.36,134.31,6.02777608]
[1763433324181,0.66,134.36,134.32,5.82777608]
[1763433324493,0.66,134.36,134.31,0.2]
[1763433324494,0.66,134.36,134.33,5.82777608]
[1763433324878,4.68,134.37,134.33,5.82777608]
[1763433325080,6.48777608,134.42,134.36,5.82777608]
[1763433325282,4.68,134.41,134.36,5.82777608]
[1763433325590,4.68,134.41,134.35,5.82777608]
[1763433325591,11.16777608,134.41,134.35,5.82777608]
[1763433325795,5.34,134.41,134.36,5.82777608]
[1763433326292,0.66,134.4,134.35,5.82777608]
[1763433326478,0.66,134.4,134.33,0.71]
[1763433326794,0.66,134.4,134.32,5.82777608]
[1763433326996,5.82777608,134.39,134.34,5.82777608]
[1763433327291,5.82777608,134.39,134.31,0.2]
[1763433327498,5.82777608,134.35,134.31,0.2]
[1763433327792,4.68,134.34,134.31,0.2]
[1763433327978,11.16777608,134.34,134.31,0.2]
[1763433328163,0.66,134.33,134.31,0.2]
[1763433328367,6.48777608,134.33,134.31,0.2]
[1763433328789,18.58,134.32,134.31,0.2]
[1763433329096,24.40777608,134.32,134.31,0.2]
[1763433329306,24.40777608,134.32,134.23,5.82777608]
[1763433329471,5.82777608,134.28,134.23,5.82777608]
[1763433329672,10.50777608,134.27,134.21,5.82777608]
[1763433330178,11.16777608,134.27,134.21,5.82777608]
[1763433330476,5.34,134.27,134.22,5.82777608]
[1763433330802,0.66,134.26,134.22,5.82777608]
[1763433331268,4.68,134.27,134.22,5.82777608]
[1763433331466,5.34,134.27,134.23,5.82777608]
[1763433331666,4.68,134.27,134.23,5.82777608]
[1763433331871,4.60221418,134.27,134.23,6.53777608]
[1763433332072,4.60221418,134.27,134.23,5.82777608]
[1763433332293,5.26221418,134.27,134.21,0.71]
[1763433332594,11.08999026,134.27,134.22,5.82777608]
[1763433332967,11.08999026,134.27,134.22,6.53777608]
[1763433333370,4.60221418,134.27,134.23,5.82777608]
[1763433333595,0.66,134.31,134.23,0.71]
[1763433333797,0.66,134.31,134.26,5.82777608]
[1763433333798,4.68,134.3,134.26,5.82777608]
[1763433333970,10.50777608,134.3,134.24,0.71]
[1763433334172,6.48777608,134.29,134.24,5.82777608]
[1763433334367,6.48777608,134.29,134.23,5.82777608]
[1763433334590,6.48777608,134.28,134.23,5.82777608]
[1763433334897,0.66,134.28,134.23,5.82777608]
[1763433335106,0.66,134.27,134.2,9.78882769]
[1763433335284,4.68,134.26,134.23,5.82777608]
[1763433335481,4.68,134.26,134.22,5.82777608]
[1763433335676,0.66,134.25,134.22,5.82777608]
[1763433335876,0.66,134.25,134.21,5.82777608]
[1763433336589,0.66,134.25,134.22,5.82777608]
[1763433336791,0.66,134.25,134.18,0.2]
[1763433336974,0.66,134.25,134.18,0.91]
[1763433337176,4.68,134.24,134.23,5.82777608]
[1763433337496,0.66,134.27,134.23,5.82777608]
[1763433337698,4.68,134.24,134.21,5.82777608]
[1763433338084,4.68,134.24,134.23,5.82777608]
[1763433338778,4.68,134.24,134.21,5.82777608]
[1763433339374,4.68,134.24,134.2,5.82777608]
[1763433339580,4.68,134.24,134.21,5.82777608]
[1763433339800,5.34,134.24,134.19,5.82777608]
[1763433340001,5.34,134.24,134.18,0.2]
[1763433340002,5.82777608,134.22,134.18,0.2]
[1763433340600,0.66,134.21,134.18,0.2]
[1763433340814,4.68,134.2,134.18,0.2]
[1763433341102,5.82777608,134.19,134.18,0.2]
[1763433341302,6.48777608,134.19,134.18,0.2]
[1763433343002,0.66,134.19,134.18,0.2]
[1763433343378,10.50777608,134.2,134.18,0.2]
[1763433343379,4.68,134.2,134.18,0.2]
[1763433343584,0.67,134.22,134.18,0.2]
[1763433343785,4.68,134.21,134.2,5.82777608]
[1763433343994,4.68,134.21,134.18,0.87]
[1763433344224,4.68,134.21,134.19,0.67]
[1763433344520,4.68,134.21,134.19,5.82777608]
[1763433345015,4.68,134.21,134.2,5.82777608]
[1763433345309,0.67,134.28,134.2,6.49777608]
[1763433345523,10.50777608,134.27,134.21,0.67]
[1763433345717,5.82777608,134.26,134.21,6.49777608]
[1763433345908,10.50777608,134.27,134.22,5.82777608]
[1763433346105,10.50777608,134.27,134.21,5.82777608]
[1763433346415,5.82777608,134.26,134.21,0.67]
[1763433346618,5.82777608,134.22,134.18,0.2]
[1763433346805,5.82777608,134.19,134.18,0.2]
[1763433347005,4.68,134.19,134.18,0.2]
[1763433347207,11.17777608,134.19,134.18,0.2]
[1763433347819,11.17777608,134.19,134.06,164.9]
[1763433347820,35.12651216,134.19,134.06,164.9]
[1763433348004,5.82777608,134.15,134.08,0.67]
[1763433348322,4.68,134.14,134.1,5.82777608]
[1763433348508,4.68,134.14,134.11,0.67]
[1763433348821,4.68,134.13,134.11,0.67]
[1763433349028,4.68,134.13,134.12,5.82777608]
[1763433349330,4.68,134.13,134.12,0.67]
[1763433350024,4.68,134.13,134.1,6.49777608]
[1763433350207,4.68,134.13,134.1,0.67]
[1763433350409,4.68,134.13,134.04,164.9]
[1763433350410,4.68,134.13,134.08,6.49777608]
[1763433350707,4.68,134.13,134.09,0.67]
[1763433351302,4.68,134.13,134.02,0.74615728]
[1763433351303,5.82777608,134.12,134.06,6.49777608]
[1763433351506,5.82777608,134.1,134.06,0.67]
[1763433351710,10.50777608,134.09,134.04,6.49777608]
[1763433352008,4.68,134.09,134.05,5.82777608]
[1763433352202,0.67,134.12,134.05,5.82777608]
[1763433352203,5.82777608,134.12,134.06,5.82777608]
[1763433352421,5.82777608,134.09,134.04,5.82777608]
[1763433352602,5.82777608,134.09,134.03,6.49777608]
[1763433352810,5.82777608,134.09,134.04,5.82777608]
[1763433353246,5.82777608,134.07,134.02,5.82777608]
[1763433353439,4.68,134.06,134.01,1.10954614]
[1763433353743,17.94,134.15,134.05,9.78882769]
[1763433353911,17.94,134.15,134.06,0.67]
[1763433353912,5.82777608,134.12,134.06,0.67]
[1763433354105,5.35,134.14,134.06,0.67]
[1763433354413,5.82777608,134.12,134.06,0.67]
[1763433354730,5.82777608,134.12,134.06,6.49777608]
[1763433354936,5.82777608,134.1,134.01,0.43954614]
[1763433355114,10.50777608,134.09,134.03,5.82777608]
[1763433355311,5.82777608,134.08,134.02,6.49777608]
[1763433355612,5.82777608,134.05,134.01,0.43954614]
[1763433355924,4.68,134.04,134.01,6.93732222]
[1763433356231,4.68,134.04,134.01,1.10954614]
[1763433356608,4.68,134.04,134.01,6.93732222]
[1763433356936,6.49777608,134.11,134.03,5.82777608]
[1763433357137,10.50777608,134.1,134.04,6.49777608]
[1763433357318,5.82777608,134.09,134.04,0.67]
[1763433357709,10.50777608,134.1,134.04,0.67]
[1763433358231,0.67,134.11,134.04,6.49777608]
[1763433360537,5.82777608,134.14,134.08,6.49777608]
[1763433360745,4.68,134.13,134.08,6.49777608]
[1763433361039,4.68,134.12,134.11,5.82777608]
[1763433361219,4.68,134.12,134.1,5.82777608]
[1763433361611,4.68,134.12,134.11,0.67]
[1763433361839,4.68,134.12,134.11,6.49777608]
[1763433362038,17.94,134.15,134.11,34.40756377]
[1763433362310,17.94,134.15,134.14,33.73756377]
[1763433362553,22.62,134.15,134.11,0.74565655]
[1763433362839,22.62,134.15,134.1,9.78882769]
[1763433363019,22.62,134.15,134.12,5.82777608]
[1763433363214,22.62,134.15,134.13,5.82777608]
[1763433363645,17.94,134.15,134.14,5.82777608]
[1763433363947,22.62,134.15,134.14,15.61660377]
[1763433364115,0.67,134.25,134.15,9.78882769]
[1763433364312,5.82777608,134.2,134.09,6.34359136]
[1763433364516,5.82777608,134.18,134.09,9.78882769]
[1763433364717,5.82777608,134.18,134.13,5.82777608]
[1763433364940,5.82777608,134.19,134.13,5.82777608]
[1763433365120,0.67,134.18,134.13,5.82777608]
[1763433365320,5.82777608,134.17,134.06,9.78882769]
[1763433365528,0.67,134.18,134.12,5.82777608]
[1763433365529,6.49777608,134.18,134.12,5.82777608]
[1763433365823,5.82777608,134.17,134.12,5.82777608]
[1763433366140,6.49777608,134.18,134.12,5.82777608]
[1763433366341,6.49777608,134.17,134.11,5.82777608]
[1763433366644,0.67,134.17,134.12,5.82777608]
[1763433367233,0.67,134.17,134.07,18.12096]
[1763433367234,0.67,134.17,134.13,5.82777608]
[1763433367427,0.67,134.17,134.12,5.82777608]
[1763433367630,0.67,134.17,134.13,5.82777608]
[1763433367852,6.49777608,134.19,134.11,9.78882769]
[1763433368030,6.49777608,134.19,134.13,5.82777608]
[1763433368425,0.67,134.18,134.13,5.82777608]
[1763433369160,0.67,134.18,134.11,9.78882769]
[1763433369161,5.82777608,134.15,134.05,0.7459903]
[1763433369323,5.82777608,134.15,134.09,15.61660377]
[1763433369531,0.67,134.2,134.14,5.82777608]
[1763433369749,0.67,134.2,134.16,5.82777608]
[1763433370044,0.67,134.22,134.17,5.82777608]
[1763433370841,0.67,134.22,134.19,9.04006734]
[1763433371342,0.67,134.24,134.19,9.04006734]
[1763433371733,9.04006734,134.22,134.12,6.01307185]
[1763433371934,0.67,134.24,134.14,9.04006734]
[1763433371935,9.04006734,134.2,134.14,9.04006734]
[1763433372243,9.04006734,134.18,134.12,9.04006734]
[1763433372439,9.04006734,134.16,134.1,9.04006734]
[1763433372851,0.66,134.15,134.1,9.04006734]
[1763433373231,0.66,134.15,134.11,9.04006734]
[1763433375235,9.70006734,134.15,134.09,9.04006734]
[1763433375654,36.16026936,134.3,134.15,9.78882769]
[1763433375655,0.66,134.23,134.15,9.78882769]
[1763433375866,0.66,134.23,134.18,9.04006734]
[1763433376047,9.04006734,134.21,134.15,9.78882769]
[1763433376243,0.66,134.23,134.12,9.04006734]
[1763433376244,9.04006734,134.19,134.12,9.04006734]
[1763433376445,9.04006734,134.18,134.11,27.16102734]
[1763433376651,9.04006734,134.18,134.12,9.04006734]
[1763433376865,0.66,134.17,134.12,9.04006734]
[1763433378052,0.66,134.23,134.16,9.04006734]
[1763433378277,0.66,134.23,134.14,9.78882769]
[1763433378278,0.66,134.23,134.18,9.04006734]
[1763433379466,9.70006734,134.23,134.16,9.04006734]
[1763433379661,9.70006734,134.23,134.12,18.12096]
[1763433379662,9.04006734,134.21,134.15,9.04006734]
[1763433379867,18.12096,134.27,134.11,6.01307185]
[1763433379868,9.04006734,134.19,134.11,6.01307185]
[1763433380069,9.04006734,134.2,134.13,9.04006734]
[1763433380481,9.70006734,134.19,134.13,9.04006734]
[1763433380651,9.70006734,134.19,134.1,15.80189954]
[1763433380856,9.04006734,134.16,134.1,9.04006734]
[1763433381061,9.04006734,134.15,134.07,6.01307185]
[1763433381384,9.04006734,134.11,134.04,9.04006734]
[1763433381560,9.04006734,134.1,134.04,9.04006734]
[1763433381894,18.12096,134.11,134.01,15.49268533]
[1763433382062,9.04006734,134.06,134.01,0.43954614]
[1763433382479,0.66,134.05,134.01,0.43954614]
[1763433382658,9.70006734,134.05,134.01,0.43954614]
[1763433383180,0.66,134.04,134.01,0.43954614]
[1763433383484,0.66,134.11,134.01,9.47961348]
[1763433383686,9.04006734,134.09,134.03,9.04006734]
[1763433383866,9.04006734,134.08,134.02,9.04006734]
[1763433384068,9.04006734,134.06,134.01,10.22837383]
[1763433384381,9.04006734,134.07,134.01,19.26844117]
[1763433384568,9.04006734,134.05,134.01,0.43954614]
[1763433384884,9.04006734,134.02,134.01,0.43954614]
[1763433385296,9.70006734,134.02,134.01,0.43954614]
[1763433386296,9.70006734,134.02,133.98,0.2]
[1763433386469,9.04006734,134.0,133.98,0.2]
[1763433386673,0.66,134.01,133.98,0.2]
[1763433386967,9.04006734,133.99,133.98,0.2]
[1763433387171,0.66,134.03,133.98,0.2]
[1763433387372,9.04006734,134.0,133.98,0.2]
[1763433387602,0.66,134.02,133.98,0.2]
[1763433387768,9.70006734,134.02,133.98,0.2]
[1763433388062,0.66,134.02,133.98,0.2]
[1763433388268,0.66,134.02,133.98,9.24006734]
[1763433388468,9.70006734,134.02,133.98,0.2]
[1763433388678,9.04006734,134.0,133.98,0.2]
[1763433388879,0.66,134.01,133.98,0.2]
[1763433389666,9.70006734,134.04,133.98,9.24006734]
[1763433389862,0.66,134.06,133.98,0.2]
[1763433390084,9.04006734,134.03,133.98,0.2]
[1763433390296,9.04006734,134.04,133.98,9.24006734]
[1763433390501,0.66,134.05,133.98,9.24006734]
[1763433390692,9.04006734,134.04,133.98,9.24006734]
[1763433391191,9.70006734,134.03,133.98,9.24006734]
[1763433391575,18.12096,134.07,133.98,0.2]
[1763433391576,9.70006734,134.02,133.98,0.2]
[1763433391771,0.66,134.02,133.98,0.2]
[1763433391974,0.66,134.01,133.98,0.2]
[1763433392173,9.04006734,134.0,133.98,0.2]
[1763433392795,18.12096,134.04,133.98,0.2]
[1763433392983,9.04006734,134.02,133.98,0.2]
[1763433393393,0.66,134.01,133.98,0.2]
[1763433393581,9.70006734,134.01,133.98,0.2]
[1763433394109,9.70006734,134.0,133.98,0.2]
[1763433394478,0.66,133.99,133.98,0.2]
[1763433394675,9.70006734,134.02,133.98,0.2]
[1763433395203,0.66,134.02,133.98,0.2]
[1763433395387,0.66,134.01,133.98,0.2]
[1763433395581,0.66,134.02,133.98,0.2]
[1763433395790,0.66,134.02,133.98,9.24006734]
[1763433395996,9.70006734,134.05,133.99,9.04006734]
[1763433396203,9.70006734,134.04,133.99,9.04006734]
[1763433396404,0.66,134.04,133.99,9.04006734]
[1763433396581,0.66,134.03,133.99,9.04006734]
[1763433396776,9.04006734,134.05,134.0,9.04006734]
[1763433396997,9.04006734,134.06,134.01,9.04006734]
[1763433397200,9.70006734,134.06,134.0,18.82889503]
[1763433398207,9.70006734,134.06,134.01,9.04006734]
[1763433398401,9.04006734,134.07,134.02,9.04006734]
[1763433398595,0.66,134.08,134.03,9.04006734]
[1763433398596,9.70006734,134.08,134.03,9.04006734]
[1763433398913,0.66,134.1,134.05,9.04006734]
[1763433399119,9.70006734,134.1,134.05,9.04006734]
[1763433399480,9.70006734,134.09,134.04,18.82889503]
[1763433399875,0.66,134.09,134.04,18.82889503]
[1763433400116,9.70006734,134.09,134.04,18.82889503]
[1763433400695,9.04006734,134.09,134.04,18.82889503]
[1763433400895,9.04006734,134.1,134.05,9.04006734]
[1763433401119,0.66,134.11,134.04,19.27889503]
[1763433401319,9.04006734,134.09,134.04,19.27889503]
[1763433401628,9.04006734,134.1,134.04,19.27889503]
[1763433402007,9.74006734,134.1,134.04,19.27889503]
[1763433402220,9.04006734,134.08,134.02,18.82889503]
[1763433402597,9.04006734,134.08,134.04,9.78882769]
[1763433402803,9.74006734,134.09,134.04,9.78882769]
[1763433403499,9.74006734,134.09,134.02,0.45]
[1763433403702,9.74006734,134.09,134.04,9.04006734]
[1763433403908,0.7,134.09,134.04,9.04006734]
[1763433404106,0.7,134.11,134.05,9.04006734]
[1763433404511,9.04006734,134.08,134.02,27.16102734]
[1763433404710,0.7,134.11,134.03,9.78882769]
[1763433404711,9.04006734,134.07,134.03,9.78882769]
[1763433405022,18.12096,134.12,134.01,9.78882769]
[1763433405023,9.04006734,134.06,134.01,9.78882769]
[1763433405409,18.12096,134.12,133.99,9.04006734]
[1763433405410,9.74006734,134.05,133.99,9.04006734]
[1763433405595,9.74006734,134.05,134.0,9.78882769]
[1763433406220,18.12096,134.12,134.0,18.82889503]
[1763433406419,9.74006734,134.07,134.02,9.04006734]
[1763433407699,2.0,134.17,134.03,18.82889503]
[1763433407904,9.04006734,134.09,134.05,9.78882769]
[1763433408101,9.04006734,134.09,134.02,18.12096]
[1763433408421,2.0,134.17,133.99,28.62701802]
[1763433408422,9.04006734,134.04,134.0,9.78882769]
[1763433408806,9.04006734,134.05,134.0,9.78882769]
[1763433408999,9.04006734,134.03,133.99,40.68997856]
[1763433409202,9.74006734,134.04,133.99,40.68997856]
[1763433409909,0.7,134.04,133.99,18.12096]
[1763433410110,9.74006734,134.04,133.99,18.12096]
[1763433411208,9.74006734,134.04,133.99,18.57096]
[1763433411613,9.74006734,134.04,133.99,27.61102734]
[1763433411815,0.7,134.04,133.99,27.61102734]
[1763433412003,9.74006734,134.04,133.99,27.16102734]
[1763433412405,9.04006734,134.06,134.0,19.27889503]
[1763433412623,9.74006734,134.06,134.0,18.82889503]
[1763433412828,9.04006734,134.06,134.0,18.82889503]
[1763433413125,9.74006734,134.05,134.0,9.78882769]
[1763433413331,9.04006734,134.04,134.0,9.78882769]
[1763433413505,9.74006734,134.04,134.0,9.78882769]
[1763433414017,9.04006734,134.04,133.99,18.12096]
[1763433414205,0.7,134.03,133.98,31.77995688]
[1763433414405,9.74006734,134.03,133.98,22.73988954]
[1763433415731,9.04006734,134.01,133.98,0.2]